bitfinex-derivatives/quotes_ETHF0:USTF0_20250210
["timestamp","ask_amount","ask_price","bid_price","bid_amount"]
[1739166982445,3.2078,2648.2,2647.5,7.32037963]
[1739166982639,3.2078,2648.6,2647.8,3.51887963]
[1739166982946,7.31513689,2648.6,2647.8,3.51887963]
[1739166983142,7.31513689,2648.6,2647.6,40.80566861]
[1739166983343,3.2078,2648.3,2647.6,40.80566861]
[1739166983540,3.2078,2647.7,2647.6,0.00566861]
[1739166983938,7.42938829,2647.7,2647.6,0.00566861]
[1739166984648,3.2078,2647.7,2647.6,0.00566861]
[1739166985143,3.2078,2648.1,2647.6,0.00566861]
[1739166985547,3.2078,2647.8,2647.6,0.00566861]
[1739166986443,4.28216605,2647.7,2646.9,3.51887963]
[1739166986647,3.2078,2647.4,2646.9,3.51887963]
[1739166987542,3.21346861,2647.4,2646.9,3.51887963]
[1739166988149,3.21346861,2647.4,2646.8,44.0078]
[1739166988349,0.00566861,2647.4,2646.9,3.51887963]
[1739166990345,0.00566861,2647.4,2646.8,44.0078]
[1739166990648,0.00566861,2647.4,2646.9,3.51887963]
[1739166992064,0.00566861,2647.4,2647.1,3.2078]
[1739166993160,3.21346861,2647.4,2646.5,0.5819]
[1739166993767,3.21346861,2647.4,2646.5,4.10077963]
[1739166993964,3.21346861,2647.4,2647.2,0.00517745]
[1739166994164,0.6113,2647.3,2647.2,0.00517745]
[1739166994462,4.80317633,2647.3,2646.6,40.8]
[1739166994660,3.2078,2647.1,2646.3,3.2078]
[1739166994964,3.2078,2647.0,2646.4,3.51887963]
[1739166995159,7.39967633,2647.0,2646.4,3.51887963]
[1739166995460,3.2078,2647.0,2646.5,0.5615]
[1739166995659,3.2078,2647.0,2646.5,3.7693]
[1739166996062,3.21346861,2647.4,2646.8,3.2078]
[1739166996365,3.2078,2647.0,2646.5,0.5615]
[1739166996564,7.22972132,2647.3,2646.5,0.5615]
[1739166996767,3.2078,2647.3,2646.5,0.5615]
[1739166997065,3.2078,2647.0,2646.6,40.8]
[1739166997260,3.2078,2647.0,2646.4,3.7842]
[1739166997261,0.6001,2646.9,2646.4,3.2078]
[1739166997463,4.85571689,2646.9,2646.4,3.2078]
[1739166997670,4.85571689,2646.9,2646.4,44.0078]
[1739166998060,4.85571689,2646.9,2646.4,3.2078]
[1739166998272,4.85571689,2646.9,2645.6,1.1565]
[1739166998273,3.2078,2646.7,2645.9,3.2078]
[1739166999165,4.30061737,2646.6,2645.9,3.2078]
[1739166999462,4.30061737,2646.6,2645.6,1.1565]
[1739166999463,3.2078,2646.4,2645.6,1.1565]
[1739167000270,3.2078,2646.4,2645.8,6.72667963]
[1739167000861,3.2078,2646.4,2645.8,3.2078]
[1739167001466,3.2078,2646.4,2645.8,6.72667963]
[1739167001676,0.6001,2646.9,2646.1,6.72667963]
[1739167003861,0.6001,2646.9,2646.2,40.8]
[1739167004373,0.6001,2646.9,2646.3,0.5666]
[1739167004669,0.6001,2646.9,2645.8,3.2078]
[1739167004670,3.2078,2646.5,2645.8,3.2078]
[1739167005169,4.33332531,2646.4,2645.9,40.8]
[1739167005670,4.33332531,2646.4,2645.8,3.2078]
[1739167006075,3.2078,2646.2,2645.7,0.5534]
[1739167006372,3.2078,2646.2,2645.6,40.8]
[1739167006569,4.04734341,2646.1,2645.6,40.8]
[1739167007071,3.2078,2646.2,2645.6,44.31887963]
[1739167007269,3.2078,2645.9,2645.6,40.8]
[1739167007776,4.12461967,2645.8,2645.2,0.5534]
[1739167008177,4.12461967,2645.8,2645.3,40.8]
[1739167009676,3.2078,2645.9,2645.4,3.2078]
[1739167010578,0.00566861,2646.0,2645.4,3.2078]
[1739167011080,0.00566861,2646.0,2645.5,3.51887963]
[1739167011277,0.00566861,2646.0,2645.7,3.2078]
[1739167012777,0.00566861,2646.0,2645.8,3.51887963]
[1739167013075,0.00566861,2646.0,2645.9,0.6091]
[1739167013277,0.00566861,2646.0,2645.9,1.1803]
[1739167013881,1.2029,2646.9,2645.9,47.9803]
[1739167013882,0.6057,2646.9,2645.9,47.9803]
[1739167014078,0.6057,2646.9,2646.1,6.72667963]
[1739167014378,3.2078,2646.3,2645.9,41.9803]
[1739167014583,3.2078,2646.6,2645.9,41.9803]
[1739167014876,4.15170016,2646.5,2645.9,41.9803]
[1739167015183,4.15736877,2646.5,2646.0,0.00566861]
[1739167015585,4.15736877,2646.5,2646.0,3.21346861]
[1739167015785,0.00566861,2646.5,2646.0,3.21346861]
[1739167017187,0.00566861,2646.5,2646.3,3.2078]
[1739167017477,0.00566861,2646.5,2646.1,4.10667963]
[1739167017677,0.00566861,2646.5,2646.3,3.2078]
[1739167018082,0.00566861,2646.5,2646.1,4.10667963]
[1739167018686,0.00566861,2646.5,2646.1,0.5878]
[1739167019282,0.00566861,2646.5,2646.3,3.2078]
[1739167020586,0.00566861,2646.5,2646.1,0.5878]
[1739167020789,0.00566861,2646.5,2646.3,3.2078]
[1739167021282,7.53259013,2646.4,2646.0,0.00566861]
[1739167022182,3.2078,2646.4,2646.0,0.00566861]
[1739167023590,0.00566861,2646.5,2646.0,3.21346861]
[1739167023987,0.00566861,2646.5,2646.0,3.81966861]
[1739167024889,0.00566861,2646.5,2646.3,3.2078]
[1739167026689,0.00566861,2646.5,2646.4,0.50150993]
[1739167027199,0.00566861,2646.5,2646.4,41.87236514]
[1739167027987,0.00566861,2646.5,2646.4,47.87215294]
[1739167028989,1.1555,2647.3,2646.4,47.87215294]
[1739167029188,1.1555,2647.3,2646.7,3.51887963]
[1739167029394,1.1555,2647.3,2646.8,0.5755]
[1739167029590,3.2078,2647.0,2646.4,40.8]
[1739167029788,3.2078,2647.0,2646.2,3.2078]
[1739167029789,3.2078,2647.0,2646.2,3.7833]
[1739167029984,4.26392456,2646.9,2646.2,3.7833]
[1739167030184,4.26959317,2646.9,2646.2,3.7833]
[1739167030586,4.26959317,2646.9,2646.2,3.2078]
[1739167031193,3.2078,2646.3,2646.0,0.00566861]
[1739167031395,1.8228,2646.2,2645.2,3.2078]
[1739167031589,3.2078,2646.0,2645.2,3.2078]
[1739167031790,3.2078,2645.7,2645.2,3.2078]
[1739167032595,3.2078,2645.3,2645.2,0.00566861]
[1739167033192,7.44806248,2645.3,2645.2,0.00566861]
[1739167034592,7.44806248,2645.3,2644.4,40.8]
[1739167034792,7.44806248,2645.3,2644.5,3.2078]
[1739167035389,3.2078,2645.3,2644.6,3.51887963]
[1739167035591,3.2078,2645.3,2644.5,3.2078]
[1739167035797,0.6035,2645.4,2644.6,3.51887963]
[1739167036195,5.47387963,2646.0,2644.6,3.51887963]
[1739167036196,0.1883027,2646.3,2645.3,3.2078]
[1739167036493,0.1883027,2646.3,2645.4,0.5999]
[1739167036494,4.27558083,2646.1,2645.4,0.5999]
[1739167036889,3.771,2646.4,2645.4,0.5999]
[1739167037294,3.771,2646.4,2645.6,3.2078]
[1739167037495,0.00566861,2646.2,2645.6,3.21346861]
[1739167039101,4.1271203,2646.1,2645.6,3.21346861]
[1739167039399,4.1271203,2646.1,2645.7,40.8]
[1739167040195,0.00566861,2646.2,2645.7,40.8]
[1739167040400,3.2078,2645.9,2645.6,0.00566861]
[1739167040900,4.80768791,2645.8,2644.6,3.2078]
[1739167041095,3.2078,2645.2,2644.6,3.2078]
[1739167042494,3.2078,2644.9,2644.4,0.611]
[1739167042693,3.2078,2644.9,2644.3,3.2078]
[1739167043105,3.21346861,2644.9,2644.3,3.2078]
[1739167043402,3.21346861,2644.9,2644.1,0.5926]
[1739167043605,0.00566861,2644.9,2644.4,3.2078]
[1739167043899,0.00566861,2644.9,2644.5,40.8]
[1739167045708,4.36854144,2644.8,2644.5,40.8]
[1739167046102,0.00566861,2644.9,2644.5,40.8]
[1739167046302,3.21346861,2644.9,2644.5,40.8]
[1739167046803,0.6111,2644.8,2644.5,40.8]
[1739167047106,3.2078,2644.6,2644.0,0.5907]
[1739167047307,3.2078,2644.6,2643.9,5.50674516]
[1739167047507,3.94489873,2644.5,2643.9,5.50674516]
[1739167047899,3.21346861,2644.9,2644.0,4.07507963]
[1739167048106,0.00566861,2644.9,2644.4,6.72667963]
[1739167048504,0.00566861,2644.9,2644.4,3.2078]
[1739167048705,4.19813344,2644.8,2644.1,6.72667963]
[1739167049101,0.00566861,2644.9,2644.1,6.72667963]
[1739167051502,3.21346861,2644.9,2644.1,3.2078]
[1739167051708,4.28345043,2644.8,2644.1,3.2078]
[1739167051906,0.5526,2644.7,2644.1,3.2078]
[1739167052208,3.157,2644.7,2643.9,5.50674516]
[1739167052415,4.28345043,2644.6,2643.9,5.50674516]
[1739167053120,3.2078,2644.5,2643.9,5.50674516]
[1739167053309,3.157,2644.7,2643.9,5.50674516]
[1739167053616,2.5926,2644.7,2644.1,6.72667963]
[1739167053910,0.5526,2644.7,2644.1,6.72667963]
[1739167054108,3.2078,2644.8,2644.1,6.72667963]
[1739167054509,3.2078,2644.5,2643.8,3.2078]
[1739167054707,3.2078,2644.5,2643.6,0.5542]
[1739167054914,4.97268408,2644.4,2643.7,44.0078]
[1739167056009,3.2078,2644.2,2643.7,44.0078]
[1739167056212,3.2078,2643.9,2643.2,3.2078]
[1739167056411,3.2078,2643.9,2643.0,0.5663]
[1739167056719,4.31464575,2643.8,2643.1,40.8]
[1739167057411,0.6022,2643.7,2643.1,40.8]
[1739167057614,0.6022,2643.7,2643.0,3.2078]
[1739167057810,3.2078,2643.6,2643.0,3.2078]
[1739167058513,3.2078,2643.2,2642.9,0.01336]
[1739167059414,0.5966,2643.1,2642.2,3.2078]
[1739167059614,3.2078,2642.9,2642.2,3.2078]
[1739167060218,3.2078,2642.6,2642.2,3.2078]
[1739167060717,3.2078,2642.3,2641.6,3.2078]
[1739167060921,3.2078,2642.0,2641.6,3.2078]
[1739167062114,0.00566861,2642.2,2641.6,3.2078]
[1739167062422,3.95498055,2642.1,2641.6,3.2078]
[1739167062816,3.2078,2642.1,2641.6,3.2078]
[1739167063016,7.16278055,2642.1,2641.6,3.2078]
[1739167064318,3.2078,2642.1,2641.6,3.2078]
[1739167064525,4.24303521,2642.0,2641.7,40.8]
[1739167064819,4.24303521,2642.0,2641.6,3.2078]
[1739167065322,3.2078,2642.1,2641.6,44.0078]
[1739167065918,0.00566861,2642.2,2641.7,3.51887963]
[1739167066427,0.00566861,2642.2,2641.9,3.2078]
[1739167066722,0.00566861,2642.2,2642.0,4.07177963]
[1739167067116,3.2078,2643.0,2642.0,4.07177963]
[1739167067327,0.5629,2643.4,2642.3,3.2078]
[1739167067615,4.00818457,2643.0,2642.0,4.07177963]
[1739167067822,4.00818457,2643.0,2642.2,3.2078]
[1739167068018,4.00818457,2643.1,2642.2,3.2078]
[1739167068425,0.00566861,2642.9,2642.3,0.00566861]
[1739167068613,0.00566861,2642.9,2642.3,3.52454824]
[1739167070319,0.00566861,2642.9,2642.3,0.00566861]
[1739167070620,4.14157937,2642.8,2642.4,40.8]
[1739167070818,0.00566861,2642.9,2642.4,40.8]
[1739167071621,0.00566861,2642.9,2642.5,3.2078]
[1739167073023,0.00566861,2642.9,2642.6,3.51887963]
[1739167073330,0.00566861,2642.9,2642.8,3.2078]
[1739167073924,3.2078,2643.5,2642.8,44.0078]
[1739167074124,3.2078,2643.5,2642.9,3.51887963]
[1739167074428,0.19301738,2643.9,2643.1,3.2078]
[1739167074631,4.22452356,2643.4,2642.8,44.0078]
[1739167075019,3.2078,2643.7,2642.8,44.0078]
[1739167075225,0.00566861,2643.4,2642.8,3.2078]
[1739167075424,3.21346861,2643.4,2642.8,3.2078]
[1739167075729,3.21346861,2643.4,2642.8,44.0078]
[1739167076225,3.21346861,2643.4,2642.8,3.2078]
[1739167076528,0.561,2643.3,2642.8,3.2078]
[1739167077321,0.00566861,2643.4,2642.8,3.2078]
[1739167078027,4.35506513,2643.3,2642.8,3.2078]
[1739167078622,0.00566861,2643.4,2642.8,3.2078]
[1739167080233,0.00566861,2643.4,2643.1,3.2078]
[1739167080428,0.00566861,2643.4,2643.2,0.6027]
[1739167081425,0.00566861,2643.4,2643.2,4.12157963]
[1739167081630,2.6223,2644.4,2643.2,4.12157963]
[1739167081631,0.5823,2644.4,2643.3,0.50212289]
[1739167081832,0.5823,2644.4,2643.6,3.2078]
[1739167082133,0.5823,2644.4,2643.7,40.8]
[1739167082730,0.5823,2644.4,2643.8,0.00566861]
[1739167082731,0.00566861,2644.3,2643.8,0.00566861]
[1739167082937,3.2078,2644.2,2643.8,0.00566861]
[1739167083340,0.00566861,2644.3,2643.8,0.00566861]
[1739167086831,4.32304346,2644.2,2643.8,0.00566861]
[1739167087239,4.32304346,2644.2,2643.8,3.21346861]
[1739167087437,4.32304346,2644.2,2643.8,40.80566861]
[1739167087739,0.00566861,2644.3,2643.8,44.01346861]
[1739167088336,0.00566861,2644.3,2643.8,3.21346861]
[1739167089142,0.00566861,2644.3,2643.8,0.00566861]
[1739167089340,0.00566861,2644.3,2643.8,3.21346861]
[1739167090040,0.00566861,2644.3,2643.8,0.00566861]
[1739167090443,0.00566861,2644.3,2643.8,3.21346861]
[1739167094240,0.00566861,2644.3,2644.1,3.2078]
[1739167094447,3.2078,2645.0,2644.1,6.72667963]
[1739167094850,4.29528989,2644.9,2644.1,6.72667963]
[1739167095642,0.00566861,2644.8,2644.1,3.2078]
[1739167096352,3.2078,2644.7,2644.1,3.2078]
[1739167096551,7.57400979,2644.7,2644.1,3.2078]
[1739167100249,4.36620979,2644.7,2644.1,3.2078]
[1739167101249,7.57400979,2644.7,2644.1,3.2078]
[1739167101756,0.6088,2644.6,2644.1,3.2078]
[1739167102258,4.38619508,2644.5,2644.1,3.2078]
[1739167102460,0.00566861,2644.8,2644.1,3.2078]
[1739167102655,4.32568672,2644.7,2644.1,3.2078]
[1739167102856,3.2078,2644.7,2644.1,3.2078]
[1739167103956,4.30792435,2644.6,2644.1,3.2078]
[1739167104355,4.49847367,2644.6,2644.1,3.2078]
[1739167104555,0.6114,2644.5,2644.1,3.2078]
[1739167105757,6.72667963,2644.2,2643.8,0.00566861]
[1739167106056,3.2078,2643.9,2643.8,0.00566861]
[1739167106455,7.51229789,2643.9,2643.1,3.2078]
[1739167107261,7.51229789,2643.9,2643.0,0.5719]
[1739167107458,0.5795,2643.8,2643.0,0.5719]
[1739167107660,0.5795,2643.8,2643.2,0.00566861]
[1739167107961,4.37357722,2643.7,2643.2,0.00566861]
[1739167108255,3.2078,2643.6,2643.2,0.00566861]
[1739167108453,3.8071,2643.6,2643.2,0.00566861]
[1739167108753,3.98076531,2643.5,2643.2,0.00566861]
[1739167110347,6.72667963,2643.3,2642.5,0.5686]
[1739167110656,6.72667963,2643.3,2642.3,3.23611129]
[1739167110657,3.2078,2643.0,2642.3,3.23611129]
[1739167110852,0.5601,2642.9,2642.3,3.23611129]
[1739167111051,4.71289082,2642.9,2642.3,3.23611129]
[1739167111253,3.2078,2642.7,2642.0,0.00470184]
[1739167111652,3.2078,2642.7,2642.1,0.00566861]
[1739167111653,3.94897409,2642.6,2642.1,0.00566861]
[1739167113255,0.00566861,2642.6,2642.2,3.2078]
[1739167113857,0.00566861,2642.6,2642.3,40.8]
[1739167114054,4.0522477,2642.5,2642.3,40.8]
[1739167114253,0.00566861,2642.6,2642.3,40.8]
[1739167115359,4.11536821,2642.5,2642.3,40.8]
[1739167116166,4.11536821,2642.5,2642.2,3.8053]
[1739167116366,0.00566861,2642.6,2642.2,3.8053]
[1739167116861,0.00566861,2642.6,2642.3,40.8]
[1739167118765,0.00566861,2642.6,2642.5,3.2078]
[1739167119165,0.00566861,2642.6,2642.2,3.8053]
[1739167119364,0.00566861,2642.6,2642.3,40.8]
[1739167120167,0.00566861,2642.6,2642.2,3.8053]
[1739167121572,0.00566861,2642.6,2642.2,7.32417963]
[1739167123272,0.00566861,2642.6,2642.2,3.8053]
[1739167124073,0.00566861,2642.6,2642.5,3.2078]
[1739167125476,0.00566861,2642.6,2642.5,6.72667963]
[1739167127773,4.395,2643.6,2642.5,7.48341963]
[1739167127974,1.1872,2643.6,2642.8,3.2078]
[1739167128278,4.12325601,2643.5,2642.9,0.609]
[1739167128877,4.12325601,2643.5,2643.1,3.2078]
[1739167128878,0.00566861,2643.5,2643.1,3.2078]
[1739167129183,0.00566861,2643.5,2643.4,3.2078]
[1739167129384,0.00566861,2643.5,2643.1,3.51887963]
[1739167129583,3.2078,2643.4,2642.9,0.609]
[1739167129783,3.777,2643.4,2642.6,3.2078]
[1739167129984,5.34750551,2643.3,2642.6,3.2078]
[1739167130479,5.34750551,2643.3,2642.3,3.2078]
[1739167130983,5.34750551,2643.3,2642.4,3.51887963]
[1739167132279,5.53375864,2643.3,2642.6,3.2078]
[1739167132480,5.53375864,2643.3,2642.2,1.1537]
[1739167132481,6.72667963,2642.9,2642.2,0.5848]
[1739167132679,3.2078,2642.6,2642.2,0.5848]
[1739167132879,3.2078,2642.3,2642.1,0.00566861]
[1739167133179,4.35499346,2642.2,2642.1,0.00566861]
[1739167133580,3.2078,2642.3,2642.1,0.00566861]
[1739167133972,4.26100198,2642.2,2642.1,0.00566861]
[1739167138483,3.2078,2642.3,2642.1,0.00566861]
[1739167139087,3.2078,2642.3,2642.1,40.80566861]
[1739167139588,3.2078,2642.3,2642.1,0.00566861]
[1739167139991,3.95082625,2642.2,2642.1,0.00566861]
[1739167140995,5.2478,2643.0,2642.1,0.00566861]
[1739167141289,4.25019384,2642.4,2642.1,0.59836861]
[1739167141785,3.2078,2642.7,2642.1,0.59836861]
[1739167142186,4.10691674,2642.6,2642.1,0.59836861]
[1739167142893,3.2078,2642.7,2642.2,3.2078]
[1739167143391,5.7002,2643.0,2642.2,3.2078]
[1739167143791,5.7002,2643.0,2642.6,0.00415932]
[1739167143986,5.1485,2643.0,2642.6,0.00415932]
[1739167144584,4.13643723,2642.9,2642.6,0.00415932]
[1739167144785,0.75681,2642.3,2640.8,3.2078]
[1739167144989,3.51887963,2641.7,2640.9,0.5979]
[1739167145389,4.13643723,2641.6,2640.9,0.5979]
[1739167145593,3.2078,2641.5,2640.9,0.5979]
[1739167145795,3.2078,2641.2,2640.3,3.51341354]
[1739167145995,3.2078,2641.2,2640.9,0.00566861]
[1739167146184,7.19712488,2641.1,2640.9,0.00566861]
[1739167146390,0.5783,2641.0,2640.9,0.00566861]
[1739167146890,0.7572,2640.9,2639.8,3.2078]
[1739167147095,0.7572,2640.9,2639.1,3.51887963]
[1739167147096,3.2078,2640.2,2639.4,3.2078]
[1739167147486,4.28458131,2640.1,2639.4,3.2078]
[1739167147701,2.04,2640.1,2639.4,3.2078]
[1739167147893,0.00567945,2640.0,2639.5,0.00567945]
[1739167148193,4.09001873,2639.9,2639.5,0.00567945]
[1739167148397,7.29781873,2639.9,2639.5,0.00567945]
[1739167150197,3.51887963,2639.8,2639.5,0.00567945]
[1739167150401,7.29781873,2639.9,2639.5,0.00567945]
[1739167150592,4.06789652,2639.7,2639.5,0.00567945]
[1739167151194,3.2078,2639.9,2639.5,0.00567945]
[1739167151996,0.00567945,2640.0,2639.5,0.00567945]
[1739167152304,4.30021689,2639.9,2639.5,0.00567945]
[1739167152594,0.00567945,2640.0,2639.6,40.8]
[1739167152796,0.00567945,2640.0,2639.9,3.2078]
[1739167154197,0.00567945,2640.0,2639.9,9.2078]
[1739167154399,0.5765,2640.7,2639.9,9.2078]
[1739167154599,0.5765,2640.7,2639.7,3.51887963]
[1739167154600,0.5765,2640.7,2640.2,3.2078]
[1739167155198,4.08903464,2640.6,2640.2,3.2078]
[1739167155704,0.00567945,2640.7,2640.2,3.2078]
[1739167156496,0.00567945,2640.7,2640.3,0.5861]
[1739167156701,0.00567945,2640.7,2640.5,3.2078]
[1739167157001,0.00567945,2640.7,2640.6,3.51887963]
[1739167157807,5.8218,2641.7,2640.6,9.51887963]
[1739167158106,0.574,2641.7,2641.0,3.2078]
[1739167158306,5.3783564,2642.0,2641.1,0.5926]
[1739167158700,3.94310328,2641.9,2641.1,0.5926]
[1739167158998,0.00567945,2641.8,2641.2,0.00567945]
[1739167159604,4.28033805,2641.7,2641.2,0.00567945]
[1739167160199,0.00567945,2641.8,2641.3,3.2078]
[1739167160599,0.00567945,2641.8,2641.6,3.2078]
[1739167162305,0.00567945,2641.8,2641.7,0.5774]
[1739167162498,3.7835,2642.6,2641.7,0.5774]
[1739167162703,3.7835,2642.6,2641.9,3.2078]
[1739167162904,4.14677324,2642.5,2641.9,3.2078]
[1739167163110,0.5757,2642.6,2641.9,3.2078]
[1739167163509,6.72667963,2642.0,2641.2,3.21347945]
[1739167163703,3.2078,2641.7,2641.2,3.21347945]
[1739167165499,3.2078,2642.1,2641.2,3.21347945]
[1739167165904,7.56890081,2642.1,2641.2,0.00567945]
[1739167166211,7.56890081,2642.1,2641.3,3.2078]
[1739167169205,7.56890081,2642.1,2641.2,0.00567945]
[1739167169206,3.2078,2641.5,2641.2,0.00567945]
[1739167169412,0.5948,2641.4,2641.2,0.00567945]
[1739167169609,4.96487681,2641.4,2641.2,0.00567945]
[1739167170603,3.2078,2641.5,2641.2,0.00567945]
[1739167171211,6.4394,2641.8,2641.2,0.00567945]
[1739167171714,1.1916,2641.8,2641.2,3.21347945]
[1739167172013,0.5948,2641.8,2641.2,3.21347945]
[1739167172406,3.2078,2641.5,2641.2,0.00567945]
[1739167172609,0.5879,2641.4,2641.2,0.00567945]
[1739167172911,5.3638916,2641.4,2641.2,0.00567945]
[1739167173516,1.1914,2641.4,2641.2,0.00567945]
[1739167174911,3.8026,2641.8,2641.2,0.00567945]
[1739167175116,0.5948,2641.8,2641.2,3.21347945]
[1739167175523,0.5948,2641.8,2641.3,0.6083]
[1739167176718,0.5948,2641.8,2641.5,3.2078]
[1739167177118,0.6018,2642.0,2641.5,3.2078]
[1739167178614,3.96317965,2641.9,2641.2,3.21347945]
[1739167181921,0.42205497,2641.4,2641.2,3.21347945]
[1739167183414,0.42205497,2641.4,2641.2,0.00567945]
[1739167183612,0.5948,2641.3,2641.2,0.00567945]
[1739167184318,1.7661,2641.3,2641.2,0.00567945]
[1739167185109,5.77397035,2641.3,2640.8,3.2078]
[1739167186115,0.42205497,2641.0,2640.8,3.2078]
[1739167186314,0.42205497,2641.0,2640.8,3.21347945]
[1739167186719,0.42205497,2641.0,2640.9,0.50557763]
[1739167186919,0.42205497,2641.0,2640.8,3.21347945]
[1739167189424,3.98427735,2640.9,2640.8,3.21347945]
[1739167190016,0.42205497,2641.0,2640.8,3.21347945]
[1739167190323,4.071836,2640.9,2640.8,0.00567945]
[1739167191928,4.071836,2640.9,2639.9,3.2078]
[1739167192230,4.071836,2640.9,2640.3,2.78574503]
[1739167192424,5.7356,2641.1,2640.3,2.78574503]
[1739167192726,3.7876,2641.1,2640.4,0.5701]
[1739167193127,3.7876,2641.1,2640.5,0.00567945]
[1739167193425,0.5798,2641.1,2640.5,0.00567945]
[1739167193642,0.5798,2641.1,2640.6,3.2078]
[1739167193841,0.00567945,2641.2,2640.6,3.2078]
[1739167194142,4.31252118,2641.1,2640.6,3.2078]
[1739167196138,6.72667963,2640.7,2638.8,3.51887963]
[1739167196347,0.18531354,2639.9,2639.2,0.5957]
[1739167196643,0.18531354,2639.9,2639.3,44.0078]
[1739167196834,0.18531354,2639.9,2639.3,40.8]
[1739167197232,3.2078,2639.7,2639.3,40.8]
[1739167197437,3.2078,2639.7,2639.3,40.80567945]
[1739167197641,4.2380889,2639.6,2639.3,40.80567945]
[1739167197944,3.2078,2639.7,2639.3,40.80567945]
[1739167198445,3.4016068,2639.7,2639.3,0.00567945]
[1739167199145,4.24038769,2639.6,2639.3,0.00567945]
[1739167199846,3.4016068,2639.7,2639.3,0.00567945]
[1739167200251,3.2078,2639.7,2639.3,0.00567945]
[1739167200542,0.00567945,2639.9,2639.3,0.00567945]
[1739167200742,0.00567945,2639.9,2639.5,3.2078]
[1739167201047,0.00567945,2639.9,2639.6,1.1669]
[1739167201448,0.00567945,2639.9,2639.8,3.2078]
[1739167202043,0.00567945,2639.9,2639.6,0.609]
[1739167202249,3.21347945,2639.9,2639.3,0.00567945]
[1739167202545,7.37231378,2639.9,2639.4,40.8]
[1739167203752,3.21347945,2639.9,2639.4,40.8]
[1739167204844,0.00567945,2639.9,2639.6,3.2078]
[1739167205046,3.2078,2640.5,2639.7,1.1167]
[1739167205954,1.35574538,2640.7,2639.7,1.1167]
[1739167205955,0.77524538,2640.7,2639.7,1.1167]
[1739167206251,0.00567945,2640.4,2639.9,3.2078]
[1739167206750,3.2078,2640.9,2639.9,3.2078]
[1739167206954,3.2078,2641.2,2640.2,3.51887963]
[1739167207146,3.2078,2641.2,2640.3,0.5657]
[1739167207342,3.988774,2641.1,2640.3,0.5657]
[1739167207547,3.988774,2641.1,2640.4,0.5558]
[1739167207747,3.988774,2641.1,2640.4,3.7636]
[1739167208052,3.988774,2641.1,2640.5,40.8]
[1739167208053,0.00567945,2641.0,2640.5,40.8]
[1739167208448,0.00567945,2641.0,2640.9,3.2078]
[1739167208645,0.18526307,2641.7,2640.8,3.2078]
[1739167208844,3.2078,2641.9,2641.1,3.51887963]
[1739167209047,3.2078,2641.9,2641.4,6.72667963]
[1739167209252,3.2078,2641.9,2641.4,3.2078]
[1739167209848,3.51887963,2641.6,2641.4,0.00567945]
[1739167210049,6.72667963,2641.6,2641.4,0.00567945]
[1739167210357,4.3730439,2641.5,2641.4,0.00567945]
[1739167212960,3.2078,2641.6,2641.4,0.00567945]
[1739167213448,3.21347945,2641.9,2641.4,0.00567945]
[1739167213649,0.00567945,2641.9,2641.4,0.00567945]
[1739167214050,3.21347945,2641.9,2641.4,0.00567945]
[1739167214256,0.00567945,2641.9,2641.4,0.00567945]
[1739167214454,6.72667963,2641.5,2639.8,3.2078]
[1739167214658,3.2078,2640.4,2639.8,0.5793]
[1739167214860,3.2078,2640.4,2639.9,0.56563008]
[1739167215251,0.5519,2640.7,2640.0,0.56563008]
[1739167215451,3.2078,2641.0,2640.0,5.45541656]
[1739167215654,0.00567945,2640.6,2640.1,1.18280953]
[1739167215953,0.00567945,2640.6,2640.2,5.03059786]
[1739167216154,0.00567945,2640.6,2640.2,9.11510757]
[1739167216363,3.2078,2641.3,2640.4,3.2078]
[1739167216754,3.2078,2641.3,2640.5,9.11510757]
[1739167217157,3.2078,2641.3,2640.6,1.13983008]
[1739167217353,3.2078,2641.3,2640.7,0.6115]
[1739167217658,0.00567945,2641.2,2640.8,3.51887963]
[1739167217855,0.00567945,2641.2,2640.8,4.08450971]
[1739167218051,0.00567945,2641.2,2640.9,4.81253234]
[1739167218362,0.00567945,2641.2,2641.0,0.56563008]
[1739167218861,0.00567945,2641.2,2641.1,0.56563008]
[1739167219167,3.2078,2641.9,2641.1,8.95431776]
[1739167219462,3.2078,2642.2,2641.2,40.8]
[1739167219662,3.2078,2641.7,2641.2,44.00351449]
[1739167220057,3.2078,2641.7,2641.3,0.56471449]
[1739167220265,3.2078,2642.1,2641.4,0.6001]
[1739167220459,0.00567945,2641.8,2641.4,1.16481449]
[1739167220764,0.00567945,2641.8,2641.4,9.58951451]
[1739167221261,3.2078,2641.7,2641.5,0.56471449]
[1739167221867,3.2078,2641.7,2641.2,0.59347945]
[1739167222365,0.00567945,2641.8,2641.3,0.5994]
[1739167222767,0.00567945,2641.8,2641.4,5.46522055]
[1739167223467,0.00567945,2641.8,2641.5,0.56381992]
[1739167224172,0.00567945,2641.8,2641.4,4.90140063]
[1739167224561,0.00567945,2641.8,2641.3,0.5994]
[1739167225066,3.21347945,2641.8,2641.3,0.5994]
[1739167225454,3.2078,2641.5,2641.2,0.59347945]
[1739167225659,3.2078,2641.5,2641.2,0.00567945]
[1739167226657,3.51887963,2641.3,2640.3,0.5679]
[1739167226857,3.2078,2640.5,2640.0,5.51705145]
[1739167227065,3.2078,2640.5,2639.8,3.2078]
[1739167227066,3.2078,2640.2,2640.1,40.8]
[1739167227264,3.2078,2640.2,2639.5,0.5679]
[1739167227866,0.00567945,2640.1,2639.6,40.80567945]
[1739167228571,3.2078,2639.9,2639.6,40.80567945]
[1739167230067,3.2078,2639.9,2639.6,0.00567945]
[1739167232460,0.00567945,2640.1,2639.6,3.52455908]
[1739167233775,0.00567945,2640.1,2639.7,0.5553]
[1739167234564,0.00567945,2640.1,2639.8,4.90901411]
[1739167234969,0.00567945,2640.1,2639.9,3.51887963]
[1739167235174,0.00567945,2640.1,2639.9,4.08257963]
[1739167236060,0.00567945,2640.1,2639.9,10.08257963]
[1739167236264,0.00567945,2640.1,2639.9,4.08257963]
[1739167237067,0.00567945,2640.1,2639.7,0.5553]
[1739167237267,3.21347945,2640.1,2639.6,0.00567945]
[1739167237468,3.2078,2639.8,2639.6,0.00567945]
[1739167241375,0.00567945,2640.1,2639.7,40.8]
[1739167241376,3.21347945,2640.1,2639.7,40.8]
[1739167241872,3.2078,2639.8,2639.7,40.8]